Cogmind - Beta 16.1 @@@ ROGUE MODE // 2026.02.18 @ 22:17:22 Player: AlmondRoll Result: Destroyed by G-73 Enforcer with Heavy Laser Performance ------------- Evolutions (8) 4000 Regions Visited (22) 4400 Robots Destroyed (129) 645 Value Destroyed (4550) 4550 Prototype IDs (80) 1600 Alien Tech Used (10) 2000 Bonus (3703) 3703 TOTAL SCORE: 20898 Bonus ------- High Alert Combat Kills 49 Follower Combat Kills 782 Registered with UFD 300 Met Optimus in HQ 500 Met Zhirov 300 Met Warlord at Base 500 MAIN.C Attacked Warlord 500 Hacked Protovariant 500 Scanned by Researcher 500 Friendly Fire -228 Cogmind --------- Core Integrity 0/1450 Matter 231/300 Energy 100/100 System Corruption 3% +Membrane Temperature Cool (0) Movement Core (50) Location -2/Section 7 Parts ------- > --- POWER (2) -------- (None) > --- PROPULSION (8) --- (None) > --- UTILITY (9) ------ Medium Storage Unit > --- WEAPON (7) ------- (None) > --- INVENTORY (10) --- Matter Drive Microactuators Microactuators AEGIS Remote Shield Subatomic Replicator Microwarp Drive Phasing Sabre Phasing Sabre Peak State ------------ > --- POWER ------------ Backup Power VII Improved Quantum Reactor > --- PROPULSION ------- Xenon Bombardment Thruster Cooled Nuclear Pulse Thruster Cooled Field Propulsion Drive Electron Diverter Improved Diametric Drive Impulse Thruster Array Improved Q-thruster > --- UTILITY ---------- Medium Storage Unit Advanced Gravity Neutralizer Long-range Sensor Array Improved Powered Armor Microwarp Drive > --- WEAPON ----------- Companion Sword Phasing Sabre Phasing Sabre Plasma Lance > --- INVENTORY -------- Micro Fission Core Xenon Bombardment Thruster Impulse Thruster Layered Light Armor Plating AEGIS Remote Shield Advanced Dynamic Insulation System Subatomic Replicator Core Stripper [Rating: 178] Favorites ----------- Power Improved Ion Engine Engine Improved Ion Engine Power Core Micro Fission Core Reactor Improved Quantum Reactor Propulsion Light Treads Treads Light Treads Leg Enhanced Biometal Leg Wheel Armored Wheel Hover Unit Cooled Antigrav System Flight Unit Cooled Nuclear Pulse Thruster Utility Structural Scanner Device Structural Scanner Storage Huge Storage Unit Processor Improved Signal Interpreter Hackware Hacking Suite Protection Improved Powered Armor Artifact Microwarp Drive Weapon Companion Sword Energy Gun Subdweller Laser Energy Cannon Vortex Cannon Ballistic Gun Subdweller Machine Gun Ballistic Cannon Perforator Launcher Tesla Bomb Launcher Special Weapon Mining Laser Impact Weapon Core Stripper Slashing Weapon Companion Sword Piercing Weapon Heavy Pick Special Melee Weapon Datajack Build | -11 -10 -10 -8 -8 -6 -5 -5 -5 -5 -4 -4 -4 -4 -4 -4 -4 -3 -3 -3 -2 -2 -2 ------- Run | Yrd Mat Sub Rec Scr Fac Fac Upp Upp War Pro Fac Was Fac Upp Upp Zhi Pro Res Qua Res Tes Sec Slots Evolved 16 | . . . . . 8 2 . . . . 2 . . . . . . 2 . 2 . . Power 1 | . . . . . . . . . . . 1 . . . . . . . . . . . Propulsion 6 | . . . . . 4 2 . . . . . . . . . . . . . . . . Utility 5 | . . . . . . . . . . . 1 . . . . . . 2 . 2 . . Weapon 4 | . . . . . 4 . . . . . . . . . . . . . . . . . Parts Attached 176 | 4 12 17 . 3 20 34 . . 11 1 3 . 11 1 5 5 . 15 11 5 12 6 Power 17 | . 3 1 . . 1 4 . . . . 1 . 1 . . . . 2 1 1 2 . Engine 4 | . 1 1 . . . 2 . . . . . . . . . . . . . . . . Core 8 | . 2 . . . 1 1 . . . . 1 . 1 . . . . 1 . . 1 . Reactor 5 | . . . . . . 1 . . . . . . . . . . . 1 1 1 1 . Propulsion 51 | 2 . 6 . 1 8 13 . . 2 . . . 4 . 2 3 . 3 1 1 3 2 Treads 5 | 2 . 3 . . . . . . . . . . . . . . . . . . . . Leg 1 | . . . . . . . . . 1 . . . . . . . . . . . . . Wheel 4 | . . 3 . 1 . . . . . . . . . . . . . . . . . . Hover 2 | . . . . . . . . . 1 . . . . . . . . . . 1 . . Flight 39 | . . . . . 8 13 . . . . . . 4 . 2 3 . 3 1 . 3 2 Utility 67 | 1 6 3 . . 10 7 . . 2 1 2 . 3 1 . 2 . 10 8 2 5 4 Device 39 | 1 1 2 . . 5 5 . . 2 1 2 . . 1 . 1 . 5 5 1 5 2 Storage 6 | . 3 . . . . 1 . . . . . . 1 . . . . . . . . 1 Processor 7 | . 1 . . . 2 . . . . . . . . . . . . 1 2 1 . . Hackware 6 | . . . . . 2 . . . . . . . 2 . . . . 2 . . . . Protection 8 | . 1 1 . . 1 1 . . . . . . . . . 1 . 2 1 . . . Artifact 1 | . . . . . . . . . . . . . . . . . . . . . . 1 Weapon 41 | 1 3 7 . 2 1 10 . . 7 . . . 3 . 3 . . . 1 1 2 . Energy Gun 6 | . 2 2 . . . . . . 2 . . . . . . . . . . . . . Energy Cannon 2 | . . . . . . . . . 1 . . . . . . . . . . . 1 . Ballistic Gun 5 | 1 1 3 . . . . . . . . . . . . . . . . . . . . Ballistic Cannon 1 | . . . . . . . . . . . . . . . . . . . . . 1 . Launcher 3 | . . . . . . 1 . . 1 . . . 1 . . . . . . . . . Special Weapon 2 | . . 1 . . . 1 . . . . . . . . . . . . . . . . Impact Weapon 3 | . . . . . . 1 . . 1 . . . . . . . . . 1 . . . Slashing Weapon 9 | . . 1 . 1 . 3 . . 1 . . . . . 3 . . . . . . . Piercing Weapon 6 | . . . . . . 4 . . . . . . 1 . . . . . . 1 . . Special Melee Weapon 4 | . . . . 1 1 . . . 1 . . . 1 . . . . . . . . . Unidentified Prototypes 42 | . . . . 1 3 6 . . 7 . . . 2 . . 2 . 2 7 . 8 4 Corrupted Parts 3 | . . 1 . . . 2 . . . . . . . . . . . . . . . . System Corruption 18 | . . 10 . . . 8 . . . . . . . . . . . . . . . . Parts Lost 42 | . . 2 . . 1 10 . . . . . . 2 . . . . 4 2 2 2 17 Power 6 | . . . . . . 2 . . . . . . . . . . . 1 1 . 1 1 Propulsion 22 | . . 2 . . 1 5 . . . . . . 1 . . . . 2 . 2 . 9 Utility 8 | . . . . . . 2 . . . . . . . . . . . 1 . . 1 4 Weapon 6 | . . . . . . 1 . . . . . . 1 . . . . . 1 . . 3 Highest Loss Streak 12 | . . 1 . . 1 4 . . . . . . 1 . . . . 2 1 1 1 12 To Critical Strikes 1 | . . . . . . 1 . . . . . . . . . . . . . . . . Average Backups 13 | 5 13 23 16 16 4 6 10 10 10 10 9 10 9 9 10 10 10 9 9 8 8 5 Power 1 | 1 1 1 1 1 . . 2 1 1 1 . . . . . . . . 1 2 1 . Propulsion 4 | 3 4 8 5 5 2 2 1 2 2 2 2 2 2 2 2 2 2 1 . . 1 . Utility 5 | . 4 8 5 6 1 2 7 7 7 7 7 8 6 6 5 5 6 5 5 3 3 3 Weapon 1 | 1 3 3 3 2 . . . . . . . . . 1 1 . . . . . 1 . Tool/Special . | . . . . . . . . . . . . . . . . . . . . . . . Unused Backups 48 | . 8 7 . 2 3 11 1 . 2 . . . 4 . . . . 1 5 . 2 2 Power 1 | . . . . . . . 1 . . . . . . . . . . . . . . . Propulsion 13 | . 1 3 . 1 . 7 . . 1 . . . . . . . . . . . . . Utility 21 | . 3 2 . 1 2 4 . . 1 . . . 4 . . . . 1 1 . 2 . Weapon 8 | . 4 2 . . 1 . . . . . . . . . . . . . 1 . . . Tool/Special 5 | . . . . . . . . . . . . . . . . . . . 3 . . 2 Average Slot Usage (%) 90 | . 99 99 100 100 59 76 88 88 87 88 88 89 91 90 87 87 89 89 93 79 84 41 Engine 7 | . 5 14 14 14 . . . . . . . . . . . . . . . . . . Core 3 | . 8 . . . 4 3 5 5 5 5 10 10 10 6 6 10 10 8 6 7 5 1 Treads 13 | . 28 23 28 19 . . . . . . . . . . . . . . . . . . Wheel 3 | . . 4 . 8 . . . . . . . . . . . . . . . . . . Flight 11 | . . . . . 15 23 35 35 34 35 31 31 34 36 36 37 36 33 37 23 26 13 Device 11 | . 13 12 14 14 10 6 5 5 5 5 9 10 . 4 5 2 5 5 3 18 20 8 Storage 9 | . 14 14 14 14 . 2 5 5 5 5 5 5 5 5 5 5 5 4 4 4 4 2 Hackware 2 | . . . . . 10 5 . . . . . . 9 5 5 5 5 9 9 4 . . Energy Gun 5 | . 12 17 14 2 . . . . . . . . . . . . . . . . . . Ballistic Gun 2 | . 15 6 . . . . . . . . . . . . . . . . . . . . Slashing Weapon 11 | . . 3 14 14 4 18 23 23 22 23 21 21 21 21 22 26 26 23 20 13 12 6 Piercing Weapon 1 | . . . . . . 8 11 11 9 11 10 10 9 9 5 . . . . 1 4 3 Special Melee Weapon 3 | . . . . 11 5 . . . . . . . . . . . . . . . . . Peak Build Rating 178 | 7 15 25 25 30 138 147 94 94 112 101 108 106 119 119 123 126 124 137 159 160 164 178 Average Rating 61 | 6 12 16 25 25 132 107 93 94 94 97 106 106 113 115 115 120 124 129 147 134 145 82 On Entrance 91 | 6 7 14 25 25 27 129 94 94 94 97 97 106 106 119 114 122 124 124 132 151 136 151 Avg Prop Armor Cover (%) 5 | . . 14 . 16 . 2 2 2 2 4 . . 3 3 3 1 1 2 4 4 2 15 Naked Turns . | . . . . . . . . . . . . . . . . . . . . . . . Heaviest Build 102 | 15 98 102 94 94 67 65 38 38 39 39 46 46 46 45 42 43 43 53 55 64 68 74 Greatest Support 81 | 40 40 40 40 40 38 59 54 54 54 41 54 54 59 46 60 53 46 66 68 65 81 75 Greatest Overweight (x) 13 | . 2 4 2 7 2 1 . . . . . . . . . 1 . 2 . 1 . 13 Average Overweight (x) . | . . 2 2 5 1 . . . . . . . . . . . . . . . . . Largest Inventory Capacity 25 | 8 25 25 25 25 25 10 10 10 10 10 10 10 10 10 10 10 10 10 10 10 10 10 Average Capacity 17 | 8 17 25 25 25 5 7 10 10 10 10 10 10 10 10 10 10 10 10 10 10 10 7 Most Carried 25 | 6 25 25 25 25 25 10 10 10 10 10 10 10 10 10 10 10 10 10 10 10 10 10 Average Carried 16 | 4 13 24 25 24 5 7 9 10 9 10 9 10 9 9 9 9 10 9 9 9 9 7 Final Capacity 25 | 8 25 25 25 25 5 10 10 10 10 10 10 10 10 10 10 10 10 10 10 10 10 10 Final Carried 25 | 6 25 25 25 25 5 10 10 10 10 10 10 10 10 10 10 10 10 9 10 10 9 10 Class Distribution -------------------- 60% | Mutant 13% | Sprinter 10% | Hacker-Sprinter 7% | Hacker-Assassin Dominant Class ---------------- Mutant | -10/Materials Mutant | -10/Subcaves Mutant | -8/Recycling Mutant | -8/Scraptown Hacker-Assassin | -6/Factory Sprinter | -5/Factory Sprinter | -5/Upper Caves Sprinter | -5/Upper Caves Sprinter | -5/Warlord Sprinter | -4/Proximity Caves Scientist-Sprinter | -4/Factory Scientist-Sprinter | -4/Waste Hacker-Sprinter | -4/Factory Scientist-Sprinter | -4/Upper Caves Hacker-Sprinter | -4/Upper Caves Scavenger-Sprinter | -4/Zhirov Hacker-Sprinter | -3/Proximity Caves Hacker-Sprinter | -3/Research Hacker-Sprinter | -3/Quarantine Hacker-Sprinter | -2/Research Sprinter | -2/Testing Mutant | -2/Section 7 Resources | -11 -10 -10 -8 -8 -6 -5 -5 -5 -5 -4 -4 -4 -4 -4 -4 -4 -3 -3 -3 -2 -2 -2 ----------- Run | Yrd Mat Sub Rec Scr Fac Fac Upp Upp War Pro Fac Was Fac Upp Upp Zhi Pro Res Qua Res Tes Sec Matter Collected 4981 | 246 291 713 . 102 739 797 5 . 220 20 30 . 180 90 84 102 20 415 272 274 229 152 Remotely 214 | 50 144 . . . 20 . . . . . . . . . . . . . . . . . Salvage Created 9263 | 99 627 756 . . 789 2075 112 . . 256 209 . 1695 184 28 310 . 713 456 532 138 284 Parts 349 | 4 42 45 . . 17 88 2 . . 3 9 . 62 1 3 2 . 20 14 20 2 15 Haulers Intercepted 15 | . 2 . . . 2 4 . . . . . . 3 . . . . 1 1 1 1 . Recyclers Shooed 8 | 1 2 . . . 1 3 . . . . . . 1 . . . . . . . . . Parts Field Recycled . | . . . . . . . . . . . . . . . . . . . . . . . Retrieved Matter . | . . . . . . . . . . . . . . . . . . . . . . . Parts Self-Destructed 32 | . . 16 . . . . 3 . . 3 . . . . 9 1 . . . . . . Prevented 1 | . . . . . . . . . . . . . . . 1 . . . . . . . Parts Restored 2 | . . 2 . . . . . . . . . . . . . . . . . . . . Broken 2 | . . 2 . . . . . . . . . . . . . . . . . . . . Kills | -11 -10 -10 -8 -8 -6 -5 -5 -5 -5 -4 -4 -4 -4 -4 -4 -4 -3 -3 -3 -2 -2 -2 ------- Run | Yrd Mat Sub Rec Scr Fac Fac Upp Upp War Pro Fac Was Fac Upp Upp Zhi Pro Res Qua Res Tes Sec Combat Hostiles Destroyed 67 | . 13 13 . . . 21 2 . . . . . 4 . . . . 5 3 4 . 2 Melee 38 | . . . . . . 18 2 . . . . . 4 . . . . 5 3 4 . 2 Guns 26 | . 13 13 . . . . . . . . . . . . . . . . . . . . AOE 3 | . . . . . . 3 . . . . . . . . . . . . . . . . Classes Destroyed 19 | 1 6 4 . . . 7 . . . . . . . . 1 . . . . . . . Worker 5 | . 2 . . . . 3 . . . . . . . . . . . . . . . . Builder 1 | . 1 . . . . . . . . . . . . . . . . . . . . . Hauler 15 | . 2 . . . 2 4 . . . . . . 3 . . . . 1 1 1 1 . Recycler 22 | 1 1 . . . 4 4 . . . . 1 . 8 . . . . 1 1 . . 1 Minesweeper 1 | . . . . . . . . . . . . . . . 1 . . . . . . . Mechanic 2 | . 1 . . . . . . . . . 1 . . . . . . . . . . . Operator 4 | . . . . . . 1 . . . . 1 . . . . . . 1 . . . 1 Turret 2 | . . 2 . . . . . . . . . . . . . . . . . . . . Watcher 8 | . . . . . . 2 . . . . . . 2 . . . . 1 . 2 1 . Swarmer 19 | . 6 4 . . . 9 . . . . . . . . . . . . . . . . Grunt 19 | . 7 2 . . . 3 2 . . . . . . . . . . 2 . 3 . . Duelist 1 | . . . . . . 1 . . . . . . . . . . . . . . . . Sentry 7 | . . . . . . 1 . . . . . . 1 . . . . 3 . 1 . 1 Specialist 2 | . . . . . . 2 . . . . . . . . . . . . . . . . Hunter 1 | . . . . . . 1 . . . . . . . . . . . . . . . . Programmer 10 | . . . . . . 4 . . . . . . 3 . . . . . 3 . . . S7 Guard 1 | . . . . . . . . . . . . . . . . . . . . . . 1 Artisan 1 | . . 1 . . . . . . . . . . . . . . . . . . . . Subdweller 7 | . . 7 . . . . . . . . . . . . . . . . . . . . Zionite 2 | . . 2 . . . . . . . . . . . . . . . . . . . . Packrat 2 | . . . . . . . . . . . . . . 2 . . . . . . . . Best Kill Streak 11 | 1 6 5 . . 2 11 2 . . . 3 . 6 . 1 . . 3 3 2 1 2 Combat Bots Only 6 | . 3 3 . . . 6 2 . . . . . 1 . . . . 2 3 2 . 1 Max Kills in Single Turn 4 | 1 2 1 . . 1 4 1 . . . 1 . 1 1 1 . . 1 1 1 1 1 Gunslinging 1 | . 1 . . . . . . . . . . . . . . . . . . . . . Exploded 3 | . . . . . . 3 . . . . . . . . . . . . . . . . Melee 1 | . . . . . . 1 1 . . . . . 1 . . . . 1 1 1 . 1 Uniques/NPCs Destroyed . | . . . . . . . . . . . . . . . . . . . . . . . Combat | -11 -10 -10 -8 -8 -6 -5 -5 -5 -5 -4 -4 -4 -4 -4 -4 -4 -3 -3 -3 -2 -2 -2 -------- Run | Yrd Mat Sub Rec Scr Fac Fac Upp Upp War Pro Fac Was Fac Upp Upp Zhi Pro Res Qua Res Tes Sec Hostile Shots Fired 868 | . 61 88 . . 34 234 4 3 5 . 5 . 55 . 17 . . 34 37 28 96 167 Missed 340 | . 17 35 . . 12 71 3 2 3 . 2 . 22 . 10 . . 16 20 14 51 62 Hits 528 | . 44 53 . . 22 163 1 1 2 . 3 . 33 . 7 . . 18 17 14 45 105 Melee 8 | . . . . . . 4 . . 1 . . . . . . . . . . . . 3 Projectile 520 | . 44 53 . . 22 159 1 1 1 . 3 . 33 . 7 . . 18 17 14 45 102 AOE 1 | . . . . . . . . . . . . . . . . . . . . . 1 . Critical Strikes 20 | . . . . . . 5 . . . . . . . . . . . . 1 . 5 9 Part Disruptions 1 | . 1 . . . . . . . . . . . . . . . . . . . . . Damage Taken 9680 | . 478 679 . . 418 2621 19 18 86 . 45 . 621 . 127 . . 717 370 392 589 2500 Core 2157 | . 37 62 . . 137 226 . . . . 13 . 169 . 43 . . 97 50 23 35 1265 Absorbed by Shields 267 | . . . . . . 34 . . . . . . 6 . . . . . . . 96 131 Redirected to Shielding 88 | . . . . . . 88 . . . . . . . . . . . . . . . . Regen/Repaired (Parts) 238 | . . . . . 18 . . . 49 . . . 171 . . . . . . . . . Core Remaining (%) 81 | 100 . . . 60 83 . . . . 77 . . . . . . 80 . 88 . . . Volleys Fired 128 | 2 57 67 . . . 1 . . . . . . . 1 . . . . . . . . Largest 2 | 2 2 2 . . . 1 . . . . . . . 1 . . . . . . . . Hottest 160 | 60 76 160 . . . 46 . . . . . . . 43 . . . . . . . . Shots Fired 223 | 4 112 104 1 . . 1 . . . . . . . 1 . . . . . . . . Gun 218 | 4 112 101 1 . . . . . . . . . . . . . . . . . . . Cannon . | . . . . . . . . . . . . . . . . . . . . . . . Launcher 2 | . . . . . . 1 . . . . . . . 1 . . . . . . . . Special 3 | . . 3 . . . . . . . . . . . . . . . . . . . . Kinetic 91 | 2 65 24 . . . . . . . . . . . . . . . . . . . . Thermal 128 | . 47 80 1 . . . . . . . . . . . . . . . . . . . Explosive 1 | . . . . . . . . . . . . . . 1 . . . . . . . . Electromagnetic 3 | 2 . . . . . 1 . . . . . . . . . . . . . . . . Robot Hit Streak 45 | 3 13 45 . . . . . . . . . . . . . . . . . . . . Robot Miss Streak 4 | . 4 2 . . . . . . . . . . . . . . . . . . . . Penetration Max . | . . . . . . . . . . . . . . . . . . . . . . . Secondary Targets 6 | . 5 1 . . . . . . . . . . . . . . . . . . . . Max Gunslinging Chain 1 | . 1 1 . . . . . . . . . . . . . . . . . . . . Shots Hit Robots 455 | 3 69 78 . 8 13 113 4 . . 6 8 . 46 2 1 9 . 32 16 25 5 17 Core Hits 191 | 2 34 31 . . 5 46 3 . . 1 2 . 20 2 . 3 . 13 7 13 2 7 Critical Kills 1 | . . 1 . . . . . . . . . . . . . . . . . . . . Critical Parts Destroyed . | . . . . . . . . . . . . . . . . . . . . . . . Critical Strikes 26 | . 1 1 . . . 9 . . . . . . 6 . . . . 5 2 2 . . Burn 1 | . 1 . . . . . . . . . . . . . . . . . . . . . Destroy 1 | . . 1 . . . . . . . . . . . . . . . . . . . . Sever 12 | . . . . . . 2 . . . . . . 1 . . . . 5 2 2 . . Impale 10 | . . . . . . 5 . . . . . . 5 . . . . . . . . . Melee Attacks 653 | . . 3 . 8 44 172 5 . 36 7 15 . 96 25 4 11 . 83 50 36 24 34 Impact 11 | . . . . . . . . . 11 . . . . . . . . . . . . . Slashing 392 | . . 3 . . 44 82 1 . 11 2 6 . 36 10 3 11 . 83 50 27 7 16 Piercing 242 | . . . . . . 90 4 . 14 5 9 . 60 15 1 . . . . 9 17 18 Sneak Attacks 80 | . . 1 . 8 7 18 . . . . 6 . 18 2 1 . . 6 5 1 2 5 Combat Hostiles 11 | . . . . . . 4 . . . . . . 2 . . . . 3 1 . . 1 Follow-up Attacks 127 | . . . . . . 52 1 . . 2 4 . 19 . . 5 . 18 9 5 2 10 Damage Inflicted 18413 | 34 1000 1578 . . 807 4960 170 . . 418 545 . 2421 292 128 859 . 1817 951 1132 272 1029 Guns 2454 | 34 909 1511 . . . . . . . . . . . . . . . . . . . . Cannons . | . . . . . . . . . . . . . . . . . . . . . . . Explosions 346 | . 79 . . . . 267 . . . . . . . . . . . . . . . . Melee 15593 | . . 67 . . 807 4693 170 . . 418 545 . 2421 292 128 859 . 1817 951 1132 272 1021 Ramming 20 | . 12 . . . . . . . . . . . . . . . . . . . . 8 Kinetic 907 | 22 491 394 . . . . . . . . . . . . . . . . . . . . Thermal 1535 | . 418 1117 . . . . . . . . . . . . . . . . . . . . Explosive . | . . . . . . . . . . . . . . . . . . . . . . . Electromagnetic 358 | 12 79 . . . . 267 . . . . . . . . . . . . . . . . Impact . | . . . . . . . . . . . . . . . . . . . . . . . Slashing 9129 | . . 67 . . 807 1984 . . . 139 253 . 723 . 128 859 . 1817 951 877 56 468 Piercing 6464 | . . . . . . 2709 170 . . 279 292 . 1698 292 . . . . . 255 216 553 Highest Corruption 15 | . 1 11 11 11 1 15 15 15 15 . . . 2 2 2 2 2 3 3 . 3 3 Average Corruption 3 | . 1 3 11 11 1 7 15 15 15 . . . 1 2 2 2 2 3 2 . 2 3 Corruption Purged 5 | . . . . . 1 1 . . . . . . . . . . . . 3 . . . Corruption Blocked . | . . . . . . . . . . . . . . . . . . . . . . . Effects 174 | . 9 60 14 16 3 25 6 3 1 . . . 7 3 6 1 . 2 4 . 8 6 Message Errors 33 | . 2 10 3 3 1 5 1 . 1 . . . 1 2 1 . . . . . 1 2 Matter Fused 51 | . 2 28 3 8 . 5 . . . . . . 1 . 2 . . . . . 1 1 Heat Flow Errors 26 | . . 7 1 1 1 5 . 1 . . . . 1 1 2 1 . 2 2 . 1 . Energy Discharges 19 | . 1 5 2 1 . . 2 1 . . . . 2 . 1 . . . . . 2 2 Parts Fused 5 | . . 1 1 1 . 2 . . . . . . . . . . . . . . . . Data Loss (minor) 21 | . 2 8 1 1 1 1 . 1 . . . . 1 . . . . . 2 . 3 . Data Loss (major) 6 | . 2 . . 1 . 2 . . . . . . 1 . . . . . . . . . Misfires 2 | . . . 2 . . . . . . . . . . . . . . . . . . . Alerts 7 | . . 1 1 . . 3 1 . . . . . . . . . . . . . . 1 Misdirections 4 | . . . . . . 2 2 . . . . . . . . . . . . . . . Overload Shots . | . . . . . . . . . . . . . . . . . . . . . . . Overflow Damage 1688 | . . 27 . . 124 420 33 . . 197 84 . 251 . 88 191 . 165 103 . 5 . Projectiles . | . . . . . . . . . . . . . . . . . . . . . . . Explosions 10 | . . . . . . 10 . . . . . . . . . . . . . . . . Melee 1678 | . . 27 . . 124 410 33 . . 197 84 . 251 . 88 191 . 165 103 . 5 . Knockbacks 1 | . 1 . . . . . . . . . . . . . . . . . . . . . Impact 1 | . 1 . . . . . . . . . . . . . . . . . . . . . Kinetic . | . . . . . . . . . . . . . . . . . . . . . . . Secondary . | . . . . . . . . . . . . . . . . . . . . . . . Self-Inflicted Damage 69 | . 65 . . . . . . . . . . . . . . . . . . . . 4 Shots 2 | . 2 . . . . . . . . . . . . . . . . . . . . . Rammed 4 | . 3 . . . . . . . . . . . . . . . . . . . . 1 Targets Rammed 5 | . 4 . . . . . . . . . . . . . . . . . . . . 1 Kicked . | . . . . . . . . . . . . . . . . . . . . . . . Crushed 1 | . 1 . . . . . . . . . . . . . . . . . . . . . Highest Temperature 480 | 20 251 258 129 130 247 262 112 173 52 . 152 22 368 480 173 135 . 308 241 206 248 6 Average Temperature 53 | 20 83 38 46 65 126 54 21 33 3 . 55 14 62 154 57 24 . 63 80 75 81 4 Received Heat Transfer 1380 | . 117 231 . . 60 714 9 9 . . . . 66 . . . . 48 36 27 . 63 Effects 3 | . 1 . . . . . . . . . . . 1 1 . . . . . . . . Energy Bleed 2 | . 1 . . . . . . . . . . . . 1 . . . . . . . . Interference 1 | . . . . . . . . . . . . . 1 . . . . . . . . . Siege Activations . | . . . . . . . . . . . . . . . . . . . . . . . Martial Activations . | . . . . . . . . . . . . . . . . . . . . . . . Shielding Activations . | . . . . . . . . . . . . . . . . . . . . . . . Robots Disrupted . | . . . . . . . . . . . . . . . . . . . . . . . Combat Hostiles . | . . . . . . . . . . . . . . . . . . . . . . . Robots Corrupted . | . . . . . . . . . . . . . . . . . . . . . . . Combat Hostiles . | . . . . . . . . . . . . . . . . . . . . . . . Parts Fried 2 | . . . . . . 2 . . . . . . . . . . . . . . . . Impact Corruptions . | . . . . . . . . . . . . . . . . . . . . . . . Robots Melted . | . . . . . . . . . . . . . . . . . . . . . . . Combat Hostiles . | . . . . . . . . . . . . . . . . . . . . . . . Parts Melted 5 | . 3 1 . . . 1 . . . . . . . . . . . . . . . . Heat Transferred 2472 | . 1110 1362 . . . . . . . . . . . . . . . . . . . . Parts Sabotaged . | . . . . . . . . . . . . . . . . . . . . . . . Parts Stolen . | . . . . . . . . . . . . . . . . . . . . . . . Parts Stripped . | . . . . . . . . . . . . . . . . . . . . . . . Power Chain Reactions . | . . . . . . . . . . . . . . . . . . . . . . . Alert | -11 -10 -10 -8 -8 -6 -5 -5 -5 -5 -4 -4 -4 -4 -4 -4 -4 -3 -3 -3 -2 -2 -2 ------- Run | Yrd Mat Sub Rec Scr Fac Fac Upp Upp War Pro Fac Was Fac Upp Upp Zhi Pro Res Qua Res Tes Sec Maximum Alert Level 3 | . 1 . . . 1 3 . . . . . . . . . . . 1 2 1 1 . Low Security (%) 80 | 100 96 . 100 . 91 42 . . . . 100 100 100 . . . . 90 60 . 79 100 Level 1 14 | . 3 . . . 8 25 . . . . . . . . . . . 9 32 100 20 . Level 2 5 | . . . . . . 28 . . . . . . . . . . . . 6 . . . Level 3 . | . . . . . . 3 . . . . . . . . . . . . . . . . Level 4 . | . . . . . . . . . . . . . . . . . . . . . . . Level 5 . | . . . . . . . . . . . . . . . . . . . . . . . High Security . | . . . . . . . . . . . . . . . . . . . . . . . Max Security . | . . . . . . . . . . . . . . . . . . . . . . . Peak Influence 722 | 5 210 . 19 . 260 722 . . . . 63 12 161 . . . . 273 510 339 269 179 Initial 294 | . . . 19 . . 53 . . . . . 12 8 . . . . 150 117 294 153 36 Average 126 | 2 79 . 2 . 66 266 . . . . 44 12 59 . . . . 158 214 308 135 97 Influence Increases 5954 | 5 446 200 15 . 610 1319 40 105 229 15 75 . 468 . 125 15 . 608 678 238 350 413 Destroy 0b10 Robot/C 1720 | . 260 160 . . 280 480 40 . 140 . . . 80 . . . . 100 60 80 . 40 Destroy 0b10 Robot/NC 325 | 5 35 . . . 35 70 . . . 15 15 . 65 . 5 15 . 20 10 15 10 10 Destroy Leader 346 | . 54 10 . . 54 102 . . . . . . 40 . . . . 44 12 16 4 10 Allied During Kill 105 | . . . . . 46 15 . . 44 . . . . . . . . . . . . . Successful Hack 403 | . 21 . . . 36 47 . . . . 43 . 29 . . . . 29 126 43 . 29 Disable Machine 495 | . 75 . 15 . 60 45 . . . . 15 . 15 . . . . 15 90 15 60 90 Destroy Structure 190 | . 1 . . . 24 20 . . . . 2 . 44 . . . . 40 20 9 21 9 Advance Influence 150 | . . . . . . . . . . . . . . . . . . 150 . . . . Partial Spotted 435 | . . . . . . 105 . . . . . . 45 . . . . 75 60 45 30 75 Lose Combat Pursuer 1785 | . . 30 . . 75 435 . 105 45 . . . 150 . 120 . . 135 300 15 225 150 Influence Decreases 5845 | 5 446 160 55 . 499 716 305 116 612 70 40 23 329 127 114 45 5 398 363 491 557 369 Entered New Map 1525 | . . . 21 . . 58 265 86 438 55 . 23 4 57 6 35 5 . 93 231 119 29 Time Decay 3226 | 5 446 150 34 . 309 494 40 30 84 15 40 . 295 70 108 10 . 238 230 140 318 170 Search Patrol Dispatched 300 | . . . . . . . . . . . . . . . . . . 100 . 100 100 . Lost Part 394 | . . 10 . . 10 84 . . . . . . 20 . . . . 40 20 20 20 170 Lost Ally 400 | . . . . . 180 80 . . 90 . . . 10 . . . . 20 20 . . . Squads Dispatched 57 | . 1 . . . 10 14 . . . . 1 . 7 . . . . 6 3 3 9 3 Investigation 27 | . 1 . . . 8 8 . . . . . . 3 . . . . 3 1 1 2 . Extermination 16 | . . . . . 2 3 . . . . . . 3 . . . . 2 1 1 3 1 Reinforcement 12 | . . . . . . 3 . . . . 1 . . . . . . 1 1 1 3 2 Assault 1 | . . . . . . . . . . . . . . . . . . . . . 1 . Garrison 1 | . . . . . . . . . . . . . 1 . . . . . . . . . Intercept . | . . . . . . . . . . . . . . . . . . . . . . . Searches Triggered 3 | . . . . . . . . . . . . . . . . . . 1 . 1 1 . Construction Impeded . | . . . . . . . . . . . . . . . . . . . . . . . Haulers Reinforced 4 | . . . . . . 1 . . . . 1 . . . . . . . 1 1 . . Active Scanning Responses . | . . . . . . . . . . . . . . . . . . . . . . . Cargo Convoy Interrupts 1 | . . . . . 1 . . . . . . . . . . . . . . . . . Stealth | -11 -10 -10 -8 -8 -6 -5 -5 -5 -5 -4 -4 -4 -4 -4 -4 -4 -3 -3 -3 -2 -2 -2 --------- Run | Yrd Mat Sub Rec Scr Fac Fac Upp Upp War Pro Fac Was Fac Upp Upp Zhi Pro Res Qua Res Tes Sec Distress Signals 17 | . . . . . . 3 . . . . 2 . 2 . . . . 3 5 1 . 1 Communications Jammed . | . . . . . . . . . . . . . . . . . . . . . . . Distress Signals . | . . . . . . . . . . . . . . . . . . . . . . . Times Spotted 348 | . 26 20 . . 37 58 3 6 17 . 22 4 23 . 9 . 1 19 25 18 30 30 Peak Tracking Total 25 | . 4 6 . . 12 9 1 9 5 . 10 5 7 . 8 . 1 12 16 12 25 11 Tactical Retreats 50 | . . 1 . . 2 13 . 2 2 . 3 . 4 . 2 . . 4 6 1 5 5 ECM-based Alert Blocks 21 | . . . . . . . . . . . 16 . . . . . . 2 . . . 3 Traps | -11 -10 -10 -8 -8 -6 -5 -5 -5 -5 -4 -4 -4 -4 -4 -4 -4 -3 -3 -3 -2 -2 -2 ------- Run | Yrd Mat Sub Rec Scr Fac Fac Upp Upp War Pro Fac Was Fac Upp Upp Zhi Pro Res Qua Res Tes Sec Traps Triggered 19 | . 4 2 . . 3 3 . . . . 1 . 1 . . . . . 2 . 3 . Indirectly 3 | . 3 . . . . . . . . . . . . . . . . . . . . . Trap Hack Attempts . | . . . . . . . . . . . . . . . . . . . . . . . Triggered . | . . . . . . . . . . . . . . . . . . . . . . . Disarmed . | . . . . . . . . . . . . . . . . . . . . . . . Reprogrammed . | . . . . . . . . . . . . . . . . . . . . . . . Reused 1 | . . 1 . . . . . . . . . . . . . . . . . . . . Traps Extracted . | . . . . . . . . . . . . . . . . . . . . . . . Installed 3 | . . 2 . . 1 . . . . . . . . . . . . . . . . . Triggered . | . . . . . . . . . . . . . . . . . . . . . . . Most Traps Carried 2 | . . 2 2 2 2 . . . . . . . . . . . . . . . . . Machines | -11 -10 -10 -8 -8 -6 -5 -5 -5 -5 -4 -4 -4 -4 -4 -4 -4 -3 -3 -3 -2 -2 -2 ---------- Run | Yrd Mat Sub Rec Scr Fac Fac Upp Upp War Pro Fac Was Fac Upp Upp Zhi Pro Res Qua Res Tes Sec Machines Disabled 36 | . 5 1 1 . 4 3 . . 2 . 1 . 1 . . . . 1 6 1 4 6 Max in Single Turn 5 | . 5 1 1 . 1 1 . . 1 . 1 . 1 . . . . 1 1 1 1 1 Garrison Access 2 | . . . . . . 1 . . . . . . 1 . . . . . . . . . Machines Repaired . | . . . . . . . . . . . . . . . . . . . . . . . Machines Dismantled . | . . . . . . . . . . . . . . . . . . . . . . . Machines Sabotaged . | . . . . . . . . . . . . . . . . . . . . . . . Overloaded Fab Kills . | . . . . . . . . . . . . . . . . . . . . . . . Hacking | -11 -10 -10 -8 -8 -6 -5 -5 -5 -5 -4 -4 -4 -4 -4 -4 -4 -3 -3 -3 -2 -2 -2 --------- Run | Yrd Mat Sub Rec Scr Fac Fac Upp Upp War Pro Fac Was Fac Upp Upp Zhi Pro Res Qua Res Tes Sec Machines Accessed 119 | . 9 2 1 6 18 14 . . 4 . 2 . 12 . 2 6 . 13 10 6 7 7 Terminals 54 | . 7 . 1 . 7 3 . . . . 2 . 2 . . . . 9 7 4 5 7 Fabricators 5 | . . . . . 1 2 . . . . . . 2 . . . . . . . . . Repair Stations 6 | . . . . . 1 . . . . . . . 2 . . . . 1 1 . 1 . Recycling Units 20 | . 2 . . . 7 6 . . . . . . 3 . . . . 2 . . . . Scanalyzers 9 | . . . . . 1 2 . . . . . . 2 . . . . 1 2 1 . . Garrison Access 5 | . . . . . 1 1 . . . . . . 1 . . . . . . 1 1 . Total Hacks 324 | . 25 5 2 20 49 37 . . 8 . 5 . 35 . 8 19 . 43 33 10 14 11 Successful 205 | . 15 5 1 20 26 17 . . 8 . 2 . 28 . 8 19 . 26 18 5 2 5 Failed 117 | . 9 . 1 . 22 20 . . . . 3 . 7 . . . . 17 15 5 12 6 Catastrophic 25 | . 3 . . . 4 3 . . . . 2 . . . . . . 6 1 1 3 2 Database Lockouts 2 | . 1 . . . 1 . . . . . . . . . . . . . . . . . Manual 124 | . 13 . . . 26 27 . . 1 . 3 . 11 . . . . 24 13 2 4 . Terminals 140 | . 16 . 2 . 18 8 . . . . 5 . 6 . . . . 34 23 6 11 11 Fabricators 16 | . . . . . 4 7 . . . . . . 5 . . . . . . . . . Repair Stations 19 | . . . . . 1 . . . . . . . 13 . . . . 2 2 . 1 . Recycling Units 58 | . 9 . . . 20 16 . . . . . . 7 . . . . 6 . . . . Scanalyzers 22 | . . . . . 3 5 . . . . . . 3 . . . . 1 8 2 . . Garrison Access 9 | . . . . . 3 1 . . . . . . 1 . . . . . . 2 2 . Terminal Hacks 106 | . 8 5 1 20 3 1 . . 8 . 2 . 4 . 8 19 . 12 6 3 1 5 Record 39 | . . 4 . 18 . . . . 2 . . . . . 7 7 . . . 1 . . Part Schematic 4 | . . . . . . . . . . . . . . . . 4 . . . . . . Robot Analysis 6 | . 2 . . . . . . . . . . . . . . 4 . . . . . . Prototype ID Bank 11 | . . . . . . . . . 4 . . . . . . 4 . 3 . . . . Open Door 6 | . . . . 1 . . . . 2 . . . . . 1 . . . . . . 2 Level Access Points 2 | . . . . . . . . . . . 1 . . . . . . . 1 . . . Branch Access Points 4 | . . . . . . . . . . . 1 . 1 . . . . 1 . 1 . . Emergency Access Points 1 | . . . . . . . . . . . . . . . . . . 1 . . . . Terminal Index 3 | . . . . . . 1 . . . . . . . . . . . 1 1 . . . Repair Station Index 1 | . . . . . . . . . . . . . . . . . . 1 . . . . Recycling Unit Index 2 | . . . . . . . . . . . . . 1 . . . . 1 . . . . Alert Level 3 | . . . . . . . . . . . . . 1 . . . . . 1 . . 1 Locate Traps 11 | . 5 . . . 3 . . . . . . . . . . . . . 2 . . 1 Maintenance Status 1 | . . . 1 . . . . . . . . . . . . . . . . . . . Security Status 1 | . . . . . . . . . . . . . . . . . . 1 . . . . Transport Status 1 | . 1 . . . . . . . . . . . . . . . . . . . . . Recall Extermination 2 | . . . . . . . . . . . . . 1 . . . . 1 . . . . Hauler Manifests 2 | . . . . . . . . . . . . . . . . . . 1 . 1 . . Zone Layout 3 | . . . . . . . . . . . . . . . . . . 1 1 . . 1 Proto ID Catalog 2 | . . 1 . 1 . . . . . . . . . . . . . . . . . . Protovariant Controls 1 | . . . . . . . . . . . . . . . . . . . . . 1 . Fabricator Hacks 5 | . . . . . 1 2 . . . . . . 2 . . . . . . . . . Network Status 3 | . . . . . . 1 . . . . . . 2 . . . . . . . . . Build 2 | . . . . . 1 1 . . . . . . . . . . . . . . . . Repair Station Hacks 11 | . . . . . . . . . . . . . 9 . . . . 1 1 . . . Scan Component 6 | . . . . . . . . . . . . . 5 . . . . 1 . . . . Repair 4 | . . . . . . . . . . . . . 4 . . . . . . . . . Refit 1 | . . . . . . . . . . . . . . . . . . . 1 . . . Recycling Unit Hacks 11 | . 2 . . . 4 1 . . . . . . 2 . . . . 2 . . . . Retrieve Components 11 | . 2 . . . 4 1 . . . . . . 2 . . . . 2 . . . . Scanalyzer 17 | . . . . . 2 4 . . . . . . 3 . . . . 1 7 . . . Insert Component 6 | . . . . . . . . . . . . . 1 . . . . . 5 . . . Retrieve Study 11 | . . . . . 2 4 . . . . . . 2 . . . . 1 2 . . . Garrison Access Hacks 2 | . . . . . . 1 . . . . . . 1 . . . . . . . . . Seal Access 2 | . . . . . . 1 . . . . . . 1 . . . . . . . . . Unauthorized Hacks 53 | . 5 . . . 16 8 . . . . . . 7 . . . . 10 4 2 1 . Terminals 22 | . 1 . . . 4 1 . . . . . . 1 . . . . 8 4 2 1 . Track 5 | . . . . . 2 . . . . . . . . . . . . 2 1 . . . Assimilate 9 | . . . . . 1 1 . . . . . . 1 . . . . 3 2 1 . . Botnet 7 | . 1 . . . 1 . . . . . . . . . . . . 2 1 1 1 . Operators 1 | . . . . . . . . . . . . . . . . . . 1 . . . . Fabricators 7 | . . . . . 2 3 . . . . . . 2 . . . . . . . . . Liberate 4 | . . . . . 1 2 . . . . . . 1 . . . . . . . . . Haulers 3 | . . . . . 1 1 . . . . . . 1 . . . . . . . . . Repair Stations 2 | . . . . . 1 . . . . . . . 1 . . . . . . . . . Mechanics 2 | . . . . . 1 . . . . . . . 1 . . . . . . . . . Recycling Units 20 | . 4 . . . 7 4 . . . . . . 3 . . . . 2 . . . . Monitor 1 | . 1 . . . . . . . . . . . . . . . . . . . . . Reject 2 | . 2 . . . . . . . . . . . . . . . . . . . . . Recyclers 1 | . 1 . . . . . . . . . . . . . . . . . . . . . Fedlink 16 | . . . . . 7 4 . . . . . . 3 . . . . 2 . . . . Scanalyzers . | . . . . . . . . . . . . . . . . . . . . . . . Garrison Access 2 | . . . . . 2 . . . . . . . . . . . . . . . . . Broadcast 1 | . . . . . 1 . . . . . . . . . . . . . . . . . Watchers 1 | . . . . . 1 . . . . . . . . . . . . . . . . . Data Cores Recovered 2 | . . . . . . 1 . . . . . . . . . . . . . . . 1 Used . | . . . . . . . . . . . . . . . . . . . . . . . Hacking Detections 84 | . 8 . 1 . 15 12 . . . . 2 . 9 . . . . 11 10 5 7 4 Full Trace Events 8 | . 1 . . . . 4 . . . . . . . . . . . 1 . 1 1 . Feedback Events 1 | . . . . . . 1 . . . . . . . . . . . . . . . . Corruption 1 | . . . . . . 1 . . . . . . . . . . . . . . . . Feedback Blocked . | . . . . . . . . . . . . . . . . . . . . . . . Robot Schematics Acquired 3 | . . . . . . . . . . . . . . . . . . . . . 3 . Robots Built 5 | . . . . . 3 2 . . . . . . . . . . . . . . . . Authchips . | . . . . . . . . . . . . . . . . . . . . . . . Time 286 | . . . . . 134 152 . . . . . . . . . . . . . . . . Total Robot Build Rating 22 | . . . . . 12 10 . . . . . . . . . . . . . . . . Part Schematics Acquired 6 | . . . . . . . . . . . . . . . . 4 . . . . 2 . Parts Built . | . . . . . . . . . . . . . . . . . . . . . . . Authchips . | . . . . . . . . . . . . . . . . . . . . . . . Time . | . . . . . . . . . . . . . . . . . . . . . . . Total Part Build Rating . | . . . . . . . . . . . . . . . . . . . . . . . Part Studies Acquired 11 | . . . . . 2 4 . . . . . . 2 . . . . 1 2 . . . Parts Repaired 4 | . . . . . . . . . . . . . 4 . . . . . . . . . Time 214 | . . . . . . . . . . . . . 214 . . . . . . . . . Parts Recycled . | . . . . . . . . . . . . . . . . . . . . . . . Recycled Matter . | . . . . . . . . . . . . . . . . . . . . . . . Retrieved Matter . | . . . . . . . . . . . . . . . . . . . . . . . Retrieved Components 29 | . 12 . . . 5 . . . . . . . 12 . . . . . . . . . Parts Scanalyzed . | . . . . . . . . . . . . . . . . . . . . . . . Part Schematics Acquired . | . . . . . . . . . . . . . . . . . . . . . . . Parts Damaged . | . . . . . . . . . . . . . . . . . . . . . . . Bothacking | -11 -10 -10 -8 -8 -6 -5 -5 -5 -5 -4 -4 -4 -4 -4 -4 -4 -3 -3 -3 -2 -2 -2 ------------ Run | Yrd Mat Sub Rec Scr Fac Fac Upp Upp War Pro Fac Was Fac Upp Upp Zhi Pro Res Qua Res Tes Sec Used RIF Installer . | . . . . . . . . . . . . . . . . . . . . . . . Robots Hacked 8 | . . . . 8 . . . . . . . . . . . . . . . . . . Non-combat . | . . . . . . . . . . . . . . . . . . . . . . . Combat 8 | . . . . 8 . . . . . . . . . . . . . . . . . . Robot Hacks Applied 8 | . . . . 8 . . . . . . . . . . . . . . . . . . parse_system 8 | . . . . 8 . . . . . . . . . . . . . . . . . . Relay Couplers Released . | . . . . . . . . . . . . . . . . . . . . . . . Fabnet Peak Effective % . | . . . . . . . . . . . . . . . . . . . . . . . Robots Rewired 5 | . . . . . . . . . 5 . . . . . . . . . . . . . Allies Hacked . | . . . . . . . . . . . . . . . . . . . . . . . Hacks Repelled . | . . . . . . . . . . . . . . . . . . . . . . . Allies | -11 -10 -10 -8 -8 -6 -5 -5 -5 -5 -4 -4 -4 -4 -4 -4 -4 -3 -3 -3 -2 -2 -2 -------- Run | Yrd Mat Sub Rec Scr Fac Fac Upp Upp War Pro Fac Was Fac Upp Upp Zhi Pro Res Qua Res Tes Sec Total Allies 19 | . . . . . 3 5 . . 5 . . . 1 . . . . 2 2 1 . . Largest Group 5 | . . . . . 3 3 . . 5 . . . 1 . . . . 2 2 1 . . Highest-Rated Group 238 | . . . . . 60 87 . . 238 . . . 10 . . . . 52 71 45 . . Highest-Rated Ally 64 | . . . . . 20 29 . . 64 . . . 10 . . . . 26 45 45 . . Initial UFD Resources 107 | . . . . . 23 51 69 69 69 72 72 72 72 88 88 88 91 91 105 107 107 107 Total Orders 6 | . . . . . 2 . . . . . . . 2 . . . . . . 2 . . STAY 2 | . . . . . . . . . . . . . 1 . . . . . . 1 . . ROAM 1 | . . . . . 1 . . . . . . . . . . . . . . . . . FOLLOW 3 | . . . . . 1 . . . . . . . 1 . . . . . . 1 . . Ally Attacks 111 | . . . . . 55 28 . . 28 . . . . . . . . . . . . . Total Damage 3009 | . . . . . 1627 338 . . 1044 . . . . . . . . . . . . . Kills 25 | . . . . . 15 3 . . 7 . . . . . . . . . . . . . Allies Corrupted 1 | . . . . . 1 . . . . . . . . . . . . . . . . . Allies Melted 1 | . . . . . 1 . . . . . . . . . . . . . . . . . Borg Created 11 | . . . . . 11 . . . . . . . . . . . . . . . . . Largest Collective 2 | . . . . . 2 . . . . . . . . . . . . . . . . . Intel | -11 -10 -10 -8 -8 -6 -5 -5 -5 -5 -4 -4 -4 -4 -4 -4 -4 -3 -3 -3 -2 -2 -2 ------- Run | Yrd Mat Sub Rec Scr Fac Fac Upp Upp War Pro Fac Was Fac Upp Upp Zhi Pro Res Qua Res Tes Sec Active Infowar (turns) 14570 | . . 3717 356 4666 1816 973 91 78 548 147 99 1 . 157 192 26 73 377 253 201 665 134 Optics 58 | . . . . . . . . . . . . . . . . . . 43 . 15 . . Sensors 5292 | . . . . . 1460 941 91 78 547 147 56 . . 157 192 26 73 272 253 200 665 134 IFF 104 | . . . . . 104 . . . . . . . . . . . . . . . . . Structural 10585 | . . 3717 356 4666 1812 34 . . . . . . . . . . . . . . . . Cloaking 1 | . . . . . . . . . 1 . . . . . . . . . . . . . ECM 184 | . . . . . . . . . . . 43 1 . . . . . 98 . . . 42 Robot Analysis Total 6 | . 2 . . . . . . . . . . . . . . 4 . . . . . . Derelict Logs Recovered 9 | . . 1 . 2 . . 2 . . 2 . . . 1 1 . . . . . . . Drone Launches . | . . . . . . . . . . . . . . . . . . . . . . . Drone Recoveries . | . . . . . . . . . . . . . . . . . . . . . . . Exploration | -11 -10 -10 -8 -8 -6 -5 -5 -5 -5 -4 -4 -4 -4 -4 -4 -4 -3 -3 -3 -2 -2 -2 ------------- Run | Yrd Mat Sub Rec Scr Fac Fac Upp Upp War Pro Fac Was Fac Upp Upp Zhi Pro Res Qua Res Tes Sec Turns Passed 18903 | 32 1797 4149 356 4666 1816 1387 91 78 555 149 99 13 785 158 269 79 73 515 488 299 700 349 Spaces Moved 17768 | 12 710 1488 112 2002 1422 1868 351 262 1225 504 321 77 1609 326 594 204 254 1119 1105 606 748 849 Core 60 | . . . . . . 3 . . . . . . . . . . . . . . . 57 Treads 2252 | 12 710 832 112 586 . . . . . . . . . . . . . . . . . . Legs . | . . . . . . . . . . . . . . . . . . . . . . . Wheels 2072 | . . 656 . 1416 . . . . . . . . . . . . . . . . . . Hover . | . . . . . . . . . . . . . . . . . . . . . . . Flight 13338 | . . . . . 1422 1865 351 262 1225 504 321 77 1609 326 594 204 254 1119 1105 606 748 746 Fastest Speed 6 | 160 160 130 320 195 93 15 14 14 14 26 14 14 7 20 7 14 20 6 6 19 13 17 Average Speed 80 | 160 219 242 320 231 97 30 20 20 21 26 15 15 21 22 20 17 20 19 15 24 22 30 Slowest Speed 700 | 160 320 320 320 320 157 106 21 21 26 26 16 16 29 25 25 89 20 169 21 99 26 700 Overloaded Moves 597 | . . . . . . 56 22 24 64 . 92 2 66 . 35 . . 52 60 15 106 3 Propulsion Burnouts . | . . . . . . . . . . . . . . . . . . . . . . . Robots Hopped 39 | . . . . . . 5 . . 4 . 4 . 9 . . . . 4 7 1 4 1 Potential Cave-ins . | . . . . . . . . . . . . . . . . . . . . . . . Cave-ins Triggered 1 | . . . . . . . . . . . . . . . . . . 1 . . . . Teleports 1 | . . . . . . . . . . . . . . . . . . . . . 1 . Microwarps 4 | . . . . . . . . . . . . . . . . . . . . . . 4 Exploration Rate (%) 56 | 2 98 83 23 95 37 47 59 60 94 67 8 82 42 54 69 62 42 28 92 17 80 61 Regions Visited 22 Branch Regions 14 Pre-discovered Areas 6 | . . 2 . . 1 . . . . . . . . . . 3 . . . . . . Known Exits Taken 9 | . . . . . 1 . . . . 1 . . 1 1 1 . 1 1 1 1 . . Unknown Exits Taken 11 | 1 1 1 1 1 . 1 1 1 1 . . . . . . 1 . . . . 1 . Scrap Searched 25 | . . 8 . 4 . . 1 3 . 5 . . . 1 1 . 2 . . . . . Spaces Dug 132 | . . 2 . . 19 10 . . 3 . 1 . 22 30 1 . . 21 10 3 7 3 Terrain Destroyed 132 | . . 2 . . 19 10 . . 3 . 1 . 22 30 1 . . 21 10 3 7 3 Melee 112 | . . 1 . . 19 10 . . 3 . 1 . 22 11 1 . . 21 10 3 7 3 Projectile 1 | . . 1 . . . . . . . . . . . . . . . . . . . . AOE 19 | . . . . . . . . . . . . . . 19 . . . . . . . . Terrain Rammed . | . . . . . . . . . . . . . . . . . . . . . . . Walls Destroyed . | . . . . . . . . . . . . . . . . . . . . . . . Machines Disabled . | . . . . . . . . . . . . . . . . . . . . . . . Actions | -11 -10 -10 -8 -8 -6 -5 -5 -5 -5 -4 -4 -4 -4 -4 -4 -4 -3 -3 -3 -2 -2 -2 --------- Run | Yrd Mat Sub Rec Scr Fac Fac Upp Upp War Pro Fac Was Fac Upp Upp Zhi Pro Res Qua Res Tes Sec Total 21307 | 21 841 1913 111 2031 1770 2490 363 285 1470 511 348 76 1917 373 735 236 275 1319 1358 726 1250 888 Wait 2234 | . 18 268 . 7 212 396 6 24 144 . 17 . 217 27 124 . 22 102 152 66 430 2 Move 17631 | 11 709 1487 111 2001 1421 1858 350 261 1216 503 313 76 1591 325 593 203 253 1110 1092 603 739 805 Hop 35 | . . . . . . 4 . . 4 . 4 . 8 . . . . 4 5 1 4 1 Pick Up 148 | 2 24 15 . 4 9 30 2 . 4 . 2 . 8 . 3 5 . 6 16 3 2 13 Fast Attach 162 | 1 5 5 . 3 15 30 . . 20 2 . . 12 . 3 7 . 13 16 3 17 10 Attach 60 | 2 . 2 . 1 9 10 . . . . 2 . 2 1 1 1 . 9 4 3 3 10 Detach 32 | . 1 1 . . 5 2 . . . . . . 1 1 . 1 . 7 2 1 3 7 Swap 133 | 1 8 37 . . 3 11 . . 2 . 3 . 6 2 3 4 . 13 11 18 5 6 Drop 247 | 2 15 26 . 7 24 42 2 . 24 2 . . 15 1 6 11 . 12 30 3 12 13 Fire 128 | 2 57 67 . . . 1 . . . . . . . 1 . . . . . . . . Melee 396 | . . 3 . 8 44 95 3 . 22 4 7 . 54 15 2 4 . 43 30 25 17 20 Ram 1 | . . . . . . . . . . . . . . . . . . . . . . 1 Kick . | . . . . . . . . . . . . . . . . . . . . . . . Crush 4 | . 4 . . . . . . . . . . . . . . . . . . . . . Escape Stasis 46 | . . . . . 15 10 . . . . . . 3 . . . . . . . 18 . Rewire 34 | . . . . . . . . . 34 . . . . . . . . . . . . . Trap 3 | . . 2 . . 1 . . . . . . . . . . . . . . . . . Miscellaneous 13 | . . . . . 12 1 . . . . . . . . . . . . . . . . Route ------- -11/Scrapyard -10/Materials (discovered 5 exits: [*Mat x3] / [*Min] / *Sub) -10/Subcaves (discovered 3 exits: [*Mat x2] / *Rec) -8/Recycling -8/Scraptown (discovered 2 exits: *Fac x2) -6/Factory (discovered 4 exits: *Fac x3 / *Low) -5/Factory (discovered 3 exits: *Fac x2 / [*Upp]) -5/Upper Caves -5/Upper Caves (discovered 2 exits: *Fac / *War) -5/Warlord -4/Proximity Caves -4/Factory (discovered 9 exits: Res x4 / Upp x2 / Ext x2 / Arm) -4/Waste -4/Factory (discovered 6 exits: *Res / *Upp x2 / Ext x2 / *Arm) -4/Upper Caves -4/Upper Caves -4/Zhirov -3/Proximity Caves -3/Research (discovered 3 exits: Res / *Qua x2) -3/Quarantine -2/Research (discovered 2 exits: *Tes x2) -2/Testing (discovered 2 exits: *Sec / [*Frg]) -2/Section 7 History --------- Turn | Location | Event 12 | -11/Scrapyard | Discovered new exit (range 3) 33 | -11/Scrapyard | Entered Materials 316 | -10/Materials | Build established: Mutant 401 | -10/Materials | Central database locked down 456 | -10/Materials | Discovered new exit (range 14) 525 | -10/Materials | Discovered new exit (range 11) 769 | -10/Materials | Discovered new exit (range 8) 990 | -10/Materials | Discovered new exit (range 6) 1799 | -10/Materials | Discovered new exit (range 10) 1830 | -10/Materials | Entered Subcaves 2516 | -10/Subcaves | Discovered new exit (range 15) 2595 | -10/Subcaves | Discovered new exit (range 10) 2606 | -10/Subcaves | Visited Clippyterm 2610 | -10/Subcaves | Learned location of Section 7 (-2) 2610 | -10/Subcaves | Learned 40 Factory zone layouts 3191 | -10/Subcaves | Learned 2 Materials zone layouts 3718 | -10/Subcaves | Shifting Twisted Machinery released Sub. Power Source 3843 | -10/Subcaves | Shifting Twisted Machinery released Sub. Laser 4068 | -10/Subcaves | Shifting Twisted Machinery released Sub. Power Source 4231 | -10/Subcaves | Learned location of Zion (-7) 4231 | -10/Subcaves | Met a Zionite searching for "candidates" 4525 | -10/Subcaves | Discovered new exit (range 16) 4743 | -10/Subcaves | Shifting Twisted Machinery released Shrapnel Trap 4993 | -10/Subcaves | System corruption reached 10% 5447 | -10/Subcaves | Visited 4L-MR0's lab 5498 | -10/Subcaves | Found Flightbrick 5509 | -10/Subcaves | Found Prototype Special Melee Weapon 5979 | -10/Subcaves | Entered Recycling 6255 | -8/Recycling | Scanned before Scraplab entrance 6293 | -8/Recycling | Discovered new exit (range 11) 6303 | -8/Recycling | Entered Scraplab 6335 | -8/Recycling | Entered Scraptown 6393 | -8/Scraptown | Heard Great Nut preacher, LISTEN AND RECITE! 6707 | -8/Scraptown | System corruption cleaned by C-Scrubber 7521 | -8/Scraptown | Scanned Subdweller tech in exchange for log data 7530 | -8/Scraptown | Learned Research trap positions 7582 | -8/Scraptown | Discovered new exit (range 5) 7892 | -8/Scraptown | Visited Spacefarers 8065 | -8/Scraptown | Visited Fellowship of the Rings 8268 | -8/Scraptown | Visited CR-KLE's Repair Center 8307 | -8/Scraptown | Visited Cave Peace 8774 | -8/Scraptown | Visited Assassins FH 8815 | -8/Scraptown | Visited Red Mages 8910 | -8/Scraptown | Visited Cyclists 8976 | -8/Scraptown | Visited UFD Registry 8976 | -8/Scraptown | Registered with UFD as "Softshaft" 9014 | -8/Scraptown | Entered Cyclist Reading Room 9197 | -8/Scraptown | Visited Science Guys 9259 | -8/Scraptown | Visited Scrapoid Research Area 9341 | -8/Scraptown | Visited LU-1G1's Boring Crew 9695 | -8/Scraptown | Visited Derelict Rescue Squad 9744 | -8/Scraptown | Visited Scrapoid Pod Storage 9795 | -8/Scraptown | Visited Sword Containment 9815 | -8/Scraptown | Found Prototype Slashing Weapon 9815 | -8/Scraptown | Identified Companion Sword 9867 | -8/Scraptown | Visited Botcube Research 10036 | -8/Scraptown | Discovered new exit (range 5) 10138 | -8/Scraptown | Visited Junk Cannon Lab 10210 | -8/Scraptown | Visited Abandonware Association 10231 | -8/Scraptown | Learned abandonware demo "TRNCOAT.EXE" 10231 | -8/Scraptown | Learned abandonware demo "MELTYB.EXE" 10886 | -8/Scraptown | Met Optimus 10886 | -8/Scraptown | Accepted into 0bPrime 11001 | -8/Scraptown | Entered Factory 11001 | -6/Factory | Evolved 8 slots: Propulsion x4, Weapon x4 11002 | -6/Factory | Identified exit to Lower Caves 11003 | -6/Factory | Identified exit to Factory 11005 | -6/Factory | Attached Flightbrick, gained temporary slots: Utility x3 11008 | -6/Factory | Identified 1B-0RG's Assimilator 11048 | -6/Factory | Loaded intel: 8 recycling unit locations 11195 | -6/Factory | Assimilating Soldier 5a into Collective. 11204 | -6/Factory | Assimilating Fighter 5a into Collective. 11211 | -6/Factory | Assimilating Soldier 5b into Collective. 11429 | -6/Factory | Found Prototype Processor 11429 | -6/Factory | Identified Exp. Targeting Computer 11498 | -6/Factory | Learned location of Protoforge (-2) 11550 | -6/Factory | Build established: Hacker-Assassin 11771 | -6/Factory | Assimilating Hacker 5a into Collective. 11815 | -6/Factory | Assimilating Hacker 5b into Collective. 12314 | -6/Factory | Fabricated B-48 Gladiator? 12398 | -6/Factory | Assimilating Informer 5a into Collective. 12404 | -6/Factory | Assimilating Informer 5b into Collective. 12441 | -6/Factory | Central database locked down 12507 | -6/Factory | Assimilating Hacker 5c into Collective. 12539 | -6/Factory | Assimilating Gladiator 5c into Collective. 12549 | -6/Factory | Lost 3 allies 12644 | -6/Factory | Assimilating Serf 5a into Collective. 12699 | -6/Factory | Assimilating Soldier 5c into Collective. 12812 | -6/Factory | Cargo convoy interrupted 12817 | -6/Factory | Entered another Factory area 12817 | -5/Factory | Evolved 2 slots: Propulsion x2 13034 | -5/Factory | Lost 4 parts (1p1n1u1w) 13403 | -5/Factory | Found Prototype Launcher 13403 | -5/Factory | Identified Tesla Bomb Launcher 13488 | -5/Factory | Build established: Sprinter 13514 | -5/Factory | Fabricated E-15 Imp? 13687 | -5/Factory | Discovered new exit (range 4) 13688 | -5/Factory | Identified exit to Factory 13789 | -5/Factory | System corruption reached 10% 13866 | -5/Factory | Loaded intel: 8 recycling unit locations 14176 | -5/Factory | Discovered exit to Factory (range 7) 14199 | -5/Factory | Discovered new exit (range 15) 14204 | -5/Factory | Entered Upper Caves 14206 | -5/Upper Caves | Learned Factory terminal intel 14226 | -5/Upper Caves | Learned location of 1 exit from Factory 14283 | -5/Upper Caves | Attracted the attention of an 0b10 checkpoint 14290 | -5/Upper Caves | Discovered new exit (range 4) 14295 | -5/Upper Caves | Entered another Upper Caves area 14295 | -5/Upper Caves | Spotted B-75 Beast 14318 | -5/Upper Caves | Discovered exit to Factory (range 11) 14370 | -5/Upper Caves | Discovered new exit (range 14) 14373 | -5/Upper Caves | Entered Warlord 14381 | -5/Warlord | System corruption cleaned by Quarantine Array 14403 | -5/Warlord | Received a Watcher feed algorithm from an ecstatic Tinkerer 14403 | -5/Warlord | Ran a Watcher feed algorithm 14521 | -5/Warlord | Found Prototype Device 14521 | -5/Warlord | Identified Exp. Cloaking Device 14533 | -5/Warlord | Found Prototype Hackware 14572 | -5/Warlord | Warlord's base attacked by MAIN.C 14602 | -5/Warlord | Rebuked by Warlord 14617 | -5/Warlord | Found Prototype Energy Gun 14617 | -5/Warlord | Identified Plasma Storm 14635 | -5/Warlord | Found Prototype Energy Gun 14635 | -5/Warlord | Identified Vortex Rifle 14638 | -5/Warlord | Found Prototype Energy Cannon 14638 | -5/Warlord | Identified Vortex Cannon 14641 | -5/Warlord | Found Prototype Launcher 14641 | -5/Warlord | Identified Vortex Catalyst Activator 14675 | -5/Warlord | Opened side exit 14826 | -5/Warlord | Warlord forces counterattacked 14850 | -5/Warlord | Lost 7 allies 14882 | -5/Warlord | Discovered new exit (range 12) 14925 | -5/Warlord | Lost 4 allies 14928 | -5/Warlord | Entered Proximity Caves 15016 | -4/Proximity Caves | Learned Research trap positions 15019 | -4/Proximity Caves | Discovered exit to Factory (range 15) 15077 | -4/Proximity Caves | Entered Factory 15077 | -4/Factory | Evolved 2 slots: Power x1, Utility x1 15078 | -4/Factory | Identified exit to Armory 15079 | -4/Factory | Loaded intel: 28 terminal locations 15080 | -4/Factory | Identified exit to Research 15088 | -4/Factory | Identified exit to Upper Caves 15088 | -4/Factory | Identified exit to Extension 15176 | -4/Factory | Sucked down chute 15176 | -4/Factory | Entered Waste 15180 | -4/Waste | Spotted C-40 Crusher 15181 | -4/Waste | Spotted C-40 Crusher 15183 | -4/Waste | Spotted C-40 Crusher 15185 | -4/Waste | Spotted C-40 Crusher 15187 | -4/Waste | Spotted C-40 Crusher 15187 | -4/Waste | Discovered new exit (range 10) 15189 | -4/Waste | Entered Factory 15201 | -4/Factory | Identified System Mapper 15248 | -4/Factory | Repaired Exp. Cesium-ion Thruster 15293 | -4/Factory | Repaired Cld. Nuclear Pulse Thruster 15383 | -4/Factory | Discovered exit to Armory (range 12) 15491 | -4/Factory | Build established: Hacker-Sprinter 15517 | -4/Factory | Repaired Broken Nuclear Pulse Thruster+? 15551 | -4/Factory | Garrison activated, responded to threat 15587 | -4/Factory | Repaired Mic. Fission Core+ 15741 | -4/Factory | Loaded intel: 8 recycling unit locations 15837 | -4/Factory | Discovered exit to Research (range 16) 15974 | -4/Factory | Entered Upper Caves 15994 | -4/Upper Caves | Spotted B-86 Titan 16009 | -4/Upper Caves | Identified exit to Upper Caves 16132 | -4/Upper Caves | Entered another Upper Caves area 16219 | -4/Upper Caves | Entered an active Warlord outpost 16339 | -4/Upper Caves | Learned location of 1 exit from Research 16339 | -4/Upper Caves | Learned Armory trap positions 16339 | -4/Upper Caves | Learned Research stockpile data 16339 | -4/Upper Caves | Learned Armory stockpile data 16339 | -4/Upper Caves | Learned Research garrison access intel 16339 | -4/Upper Caves | Learned Extension garrison access intel 16347 | -4/Upper Caves | Lost 4 allies 16375 | -4/Upper Caves | Identified exit to Zhirov 16401 | -4/Upper Caves | Entered Zhirov 16401 | -4/Zhirov | Discovered new exit (range 3) 16404 | -4/Zhirov | Met Zhirov 16407 | -4/Zhirov | Learned location of Command (-1) 16407 | -4/Zhirov | Learned location of Testing (-2) 16407 | -4/Zhirov | Learned location of Quarantine (-3) 16411 | -4/Zhirov | Zhirov requested help retrieving the SGEMP Prototype 16415 | -4/Zhirov | Found Alien Artifact 16415 | -4/Zhirov | Identified Integrated Dissipator 16415 | -4/Zhirov | Installed Integrated Dissipator, increased core heat dissipation (+20) 16422 | -4/Zhirov | Found Alien Artifact 16480 | -4/Zhirov | Entered Proximity Caves 16539 | -3/Proximity Caves | Spotter reported a threat 16552 | -3/Proximity Caves | Discovered exit to Research (range 5) 16553 | -3/Proximity Caves | Entered Research 16553 | -3/Research | Evolved 2 slots: Utility x2 16554 | -3/Research | Identified exit to Quarantine 16555 | -3/Research | Loaded intel: 96 trap records 16557 | -3/Research | Loaded intel: 3 garrison access locations 16600 | -3/Research | Watched by a mysterious "MATRIX" hacker. 16739 | -3/Research | Spotted B-86 Titan 16907 | -3/Research | Loaded intel: 5 recycling unit locations 16970 | -3/Research | Crushed by falling debris 16994 | -3/Research | Discovered new exit (range 7) 17053 | -3/Research | Search patrols dispatched 17068 | -3/Research | Entered Quarantine 17082 | -3/Quarantine | Identified exit to Research 17095 | -3/Quarantine | Found Alien Impact Weapon 17095 | -3/Quarantine | Identified Core Stripper 17104 | -3/Quarantine | Identified Transdimensional Reconstructor 17115 | -3/Quarantine | Found Alien Artifact 17122 | -3/Quarantine | Identified Hpw. Transdimensional Reconstructor 17129 | -3/Quarantine | Found Alien Artifact 17133 | -3/Quarantine | Identified Dimensional Node Initializer 17153 | -3/Quarantine | Found Alien Reactor 17153 | -3/Quarantine | Identified Matter Drive 17263 | -3/Quarantine | Found Alien Artifact 17263 | -3/Quarantine | Identified Subatomic Replicator 17327 | -3/Quarantine | Found Unknown Protection 17335 | -3/Quarantine | Identified Imp. Powered Armor 17427 | -3/Quarantine | Found Alien Artifact 17427 | -3/Quarantine | Identified Terrabomb 17427 | -3/Quarantine | Used Terrabomb 17451 | -3/Quarantine | Found Prototype Processor 17451 | -3/Quarantine | Identified Exp. Target Analyzer 17556 | -3/Quarantine | Entered Research 17556 | -2/Research | Evolved 2 slots: Utility x2 17557 | -2/Research | Loaded intel: 82 trap records 17773 | -2/Research | Identified exit to Testing 17806 | -2/Research | Search patrols dispatched 17855 | -2/Research | Entered Testing 17947 | -2/Testing | Protovariant out of control (PG-520UCC8BRU) 17947 | -2/Testing | Unleashed a protovariant (PG-520UCC8BRU) 17947 | -2/Testing | Spotted Striker 17959 | -2/Testing | Found Prototype Device 17959 | -2/Testing | Identified Exp. Thermal Shield 17965 | -2/Testing | Found Prototype Device 17965 | -2/Testing | Identified Exp. Shock Absorption System 17983 | -2/Testing | Found Prototype Energy Cannon 17983 | -2/Testing | Identified Disintegrator 18024 | -2/Testing | Build established: Sprinter 18105 | -2/Testing | Found Prototype Ballistic Cannon 18105 | -2/Testing | Identified Perforator 18163 | -2/Testing | Found Prototype Device 18163 | -2/Testing | Identified AEGIS Remote Shield 18179 | -2/Testing | Spotted Investigator 18206 | -2/Testing | Scanned by Researcher 18224 | -2/Testing | Warped through subspace 18227 | -2/Testing | Spotted Alpha 7 18243 | -2/Testing | Spotted Fortress 18256 | -2/Testing | Discovered new exit (range 5) 18256 | -2/Testing | Discovered new exit (range 6) 18355 | -2/Testing | Search patrols dispatched 18555 | -2/Testing | Entered Section 7 18567 | -2/Section 7 | Spotted B-90 Cyclops 18604 | -2/Section 7 | Found Alien Artifact 18604 | -2/Section 7 | Identified Microwarp Drive 18655 | -2/Section 7 | Spotted Alpha 7 18657 | -2/Section 7 | Spotted S7 Guard 18676 | -2/Section 7 | Destroyed S7 Guard 18686 | -2/Section 7 | Found Alien Artifact 18688 | -2/Section 7 | Identified Core Membrane 18688 | -2/Section 7 | Installed Core Membrane, gained immunity to corruption 18702 | -2/Section 7 | Spotted Alpha 7 18713 | -2/Section 7 | Spotted B-99 Colossus 18728 | -2/Section 7 | Found Alien Artifact 18728 | -2/Section 7 | Identified Core Expander 18728 | -2/Section 7 | Installed Core Expander, added new Utility slot 18730 | -2/Section 7 | Found Core Expander 18730 | -2/Section 7 | Installed Core Expander, added new Utility slot 18732 | -2/Section 7 | Found Core Expander 18732 | -2/Section 7 | Installed Core Expander, added new Weapon slot 18739 | -2/Section 7 | Lost 12 parts (1p8n3u) 18746 | -2/Section 7 | Found Alien Artifact 18746 | -2/Section 7 | Identified LRC Inertial Stabilizer 18746 | -2/Section 7 | Installed LRC Inertial Stabilizer, increased mass support (+10) 18748 | -2/Section 7 | Found LRC Inertial Stabilizer 18748 | -2/Section 7 | Installed LRC Inertial Stabilizer, increased mass support (+10) 18765 | -2/Section 7 | Found Integrated Dissipator 18765 | -2/Section 7 | Installed Integrated Dissipator, increased core heat dissipation (+20) 18810 | -2/Section 7 | Spotted Executioner 18813 | -2/Section 7 | Spotted Executioner 18818 | -2/Section 7 | Spotted Striker 18818 | -2/Section 7 | Spotted Striker 18821 | -2/Section 7 | Core integrity fell below 50% 18839 | -2/Section 7 | Found Matter Drive 18842 | -2/Section 7 | Spotted Executioner 18842 | -2/Section 7 | Spotted Executioner 18881 | -2/Section 7 | Core integrity fell below 20% 18904 | -2/Section 7 | Destroyed by G-73 Enforcer with Heavy Laser Last Messages --------------- 18864_ Acquired Core Stripper. 18868_ Slug penetrates Striker. 18868_ Slug penetrates Reinforced Barrier. 18868_ Acquired Phasing Sabre. 18870_ Penetrated by Slug. 18872_ Acquired AEGIS Remote Shield. 18873_ Acquired Subatomic Replicator. 18873_ Electron Diverter destroyed. 18873_ Core Stripper destroyed. 18874_ Penetrated by Slug. 18876_ Slug penetrates Reinforced Barrier. 18876_ Penetrated by Slug. 18877_ Slug penetrates Door. 18880_ Penetrated by Slug. 18884_ Acquired 18 matter. 18888_ Plasma Lance destroyed. 18897_ ALERT: Hostiles spotted, dispatching reinforcements to Terminal 7010. 18902_ Critical hit (Impale). 18903_ Slammed into G-73 Enforcer. Map ----- +----------------------------------------------------+ | ?????????????????????????# #?######## #????? | | ?????????????????????????# #?#"""""%# #????? | | ?????????????????????????# #?#""""" # #????? | | ?????????????????????????# #?#"" ]+ #????? | | ?????????????????????????+ ^ #?#""""]%# #????? | | ?????????????????????????# #?#" % # #????? | | ?????????????????????????# #?#"" # #????? | | ?????????????????????????# #?#" # #????? | | ?????????????????????????# #?######## #????? | | ?????????????????????????# ########## #????? | | ?????????????????????????# #????? | | ?????????????????????????+ #????? | | ?????????????????????????# #????? | | ?????????????????????????# #????? | | ?????????????????????????# ######+########????? | | ?????????????????????????# #???? ???????????? | | ?????????????????????????# #???? ???????????? | | ?????????????????######### #???" !??????????? | | ?????????????????# + #???" !??????????? | | ?????????????????# # #??"T ?????????? | | ?????????????????# # #??"" ! ?????????? | | ?????????????????# # #??"" ????????? | | ?????????????????# [ # #?? ????????? | | ?????????????????# # ######+#####???????? | | ?????????????????# g# k #???????????? | | ?????????????????# Kg@ #???????????? | | ?????????????????# """ # +???????????? | | ?????????????????# """ # #???????????? | | ?????????????????# """ ##g #########???????????? | | ?????????????????# """ #?g #???????????????????? | | ?????????????????# """ #? +???????????????????? | | ?????????????????# """ #? #???????????????????? | | ??????????????????? """ #? #???????????????????? | | ????????????????????? #???????????????????????? | | ?????????????????????#####???????????????????????? | | ?????????????????????????????????????????????????? | | ?????????????????????????????????????????????????? | | ?????????????????????????????????????????????????? | | ?????????????????????????????????????????????????? | | ?????????????????????????????????????????????????? | | ?????????????????????????????????????????????????? | | ?????????????????????????????????????????????????? | | ?????????????????????????????????????????????????? | | ?????????????????????????????????????????????????? | | ?????????????????????????????????????????????????? | | ?????????????????????????????????????????????????? | | ?????????????????????????????????????????????????? | | | | | | | +----------------------------------------------------+ Best States ------------- Heat Dissipation 89 Energy Generation 46 Energy Capacity 400 Matter Stores 300 Matter Capacity 300 Sight Range 20 Robot Scan Range 18 Terrain Scan Density 10 ECM Strength 1 Additional Mass Support 16 EM Shielding 4 Armor Coverage 400 Resistance: TH 30 Propulsion Shielding 66 Melee Speed Boost 40 Evasion (%) 79 Recoil Reduction 2 Offensive Hacking 34 Defensive Hacking 14 Item Schematics ----------------- Assault Drone Bay | -4/Zhirov | Free Exp. Heat Sink | -4/Zhirov | Free Exp. Optical Array | -4/Zhirov | Free Imp. Arc Thrower | -4/Zhirov | Free Proton Burst Cannon | -2/Testing | Archive Adv. Myomer Leg | -2/Testing | Archive Robot Schematics ------------------ H-88 Terminator | -2/Testing | Archive G-73 Enforcer | -2/Testing | Archive T-07 Excavator | -2/Testing | Archive Fabricated ------------ B-48 Gladiator | x3 | -6/Factory | Preloaded E-15 Imp | x2 | -5/Factory | Preloaded Repaired ---------- Exp. Cesium-ion Thruster | 4% | -4/Factory Cld. Nuclear Pulse Thruster | 35% | -4/Factory Nuclear Pulse Thruster | 36% | -4/Factory | Broken Mic. Fission Core | 33% | -4/Factory Studied --------- VTOL Module | -6/Factory | Hacked Nuclear Pulse Thruster | -6/Factory | Hacked Nuclear Pulse Array | -5/Factory | Hacked Hvy. Pick | -5/Factory | Hacked Chainsword | -5/Factory | Hacked Mic. Fission Core | -5/Factory | Hacked Lance | -4/Factory | Hacked Impulse Thruster | -4/Factory | Hacked Greatsword | -3/Research | Hacked Imp. Fusion Compressor | -3/Quarantine | Hacked Q-thruster | -3/Quarantine | Hacked Alien Tech Used ----------------- Integrated Dissipator Core Stripper Matter Drive Subatomic Replicator Terrabomb High-powered Transdimensional Reconstructor Microwarp Drive Core Membrane Core Expander LRC Inertial Stabilizer Achievements -------------- Ew, Corruption Challenges ------------ None Game ------ Seed PlatingSpikedNullifier Manual? 0 Play Time 04:59:29 Cumulative 465.1 hours Start 2026.02.18 @ 16:10:01 End 2026.02.18 @ 22:17:22 Sessions 1 Manual Loads 0 Difficulty Rogue Special Mode None Game No. 220 Rogue 220 Adventurer 0 Explorer 0 Win Type - Total 15 Types 8/0/5/2/0/0/0/0/0/0 Lore% 72 Gallery% 72 Achievement% 53 Wizard Run 0 Options --------- Layout 0 ASCII 0 Keyboard 0 Movement Numpad Keybinds 0 Fullscreen 1 Font 18/SmallcapsGlow Map View 76x50 Zoom Use 0% Tactical HUD 1 Map Filters NONE Filters NONE Steam 1 RUN: ba1a7c4d-309f-4e3b-a003-2616ff33b6fe